{"text_format":"3","workbook":"xlsx","n_sheets":4,"sheets":["Início","Relatório de orçamento mensal","Despesas mensais","Dados adicionais"],"not_rendered":{"charts":1,"defined_names":4,"pivot_tables":2},"read":"whole","date_system":"1900"}

{"sheet":"Início","index":0,"n_rows":8,"n_cols":2,"rows_kept":8}
[null,"SOBRE ESTE MODELO"]
[null,"Use esta pasta de trabalho para controlar suas despesas e criar orçamento familiar."]
[null,"Insira a renda real e projetada de diferentes fontes em planilha do relatório de orçamento mensal e os valores reais e projetados de gastos nas várias categorias na planilha de despesas mensais."]
[null,"Diferença e saldo real e projetado e diferença são calculados automaticamente e o resumo do orçamento e gráfico da visão geral do orçamento são atualizados em uma planilha do relatório de orçamento mensal."]
[null,"Você pode modificar ou inserir a nova categoria de tabela na planilha de dados adicionais."]
[null,"Observação: "]
[null,"Instruções adicionais foram fornecidas na coluna A na planilha do relatório de orçamento mensal e na célula A1 nas planilhas de despesas MENSAIS e Dados adicionais. Este texto está oculto de propósito. Para removê-lo, selecione a coluna A ou a célula A1 e selecione Delete. Para reexibi-lo, selecione a coluna A ou a célula A1 e altere a cor da fonte."]
[null,"Saiba mais sobre as tabelas pressionando Shift e F10 dentro de uma tabela, selecione a opção TABELA e depois TEXTO ALTERNATIVO. Para tabelas dinâmicas, pressione SHIFT e F10 dentro de uma tabela, selecione as opções de tabela dinâmica e, em seguida, selecione a guia TEXTO ALT."]

{"sheet":"Relatório de orçamento mensal","index":1,"n_rows":34,"n_cols":14,"rows_kept":34,"merged":[[0,1,0,4],[0,5,0,7],[0,12,0,13],[1,9,5,13],[2,2,2,5],[3,2,3,5],[4,2,4,5],[7,1,10,1],[7,5,10,5],[7,6,10,6],[8,9,31,9],[12,1,16,1],[12,5,16,5],[12,6,16,6],[19,1,34,6]]}
["Crie um relatório de orçamento mensal nesta planilha. O título desta planilha está na célula à direita e a dica de informações na célula J1. Selecione a célula F1 para navegar até a planilha de despesas mensais. Instruções úteis sobre como usar esta planilha estão nas células desta coluna.","Visão Geral do Orçamento",{"$nulls":3},"Despesas mensais",{"$nulls":3},"Resumo do orçamento",null,null,"Pé trigo único de cores verde está nessa célula."]
["O rótulo do saldo está na célula à direita. Segmentações de dados de tabela dinâmica para filtrar dados da tabela estão nas células de J2 a N6. Para selecionar várias categorias, mantenha a tecla Ctrl pressionada.","Saldo",{"$nulls":7},"A segmentação de dados de categoria para filtrar a tabela dinâmica abaixo por categoria selecionada está nessa célula."]
["O rótulo de saldo previsto está na célula à direita. O saldo previsto é calculado automaticamente na célula G3.","Saldo Previsto","(Projetado menos as despesas)",{"$nulls":3},{"$f":"D17-SUM(DetalhesDoOrçamento[Custo previsto])","v":{"v":1585,"d":"R$ 1,585"}}]
["O rótulo do saldo real está na célula à direita. O saldo real é calculado automaticamente na célula G4.","Saldo Real ","(Real menos as despesas)",{"$nulls":3},{"$f":"D11-SUM(DetalhesDoOrçamento[Custo Real])","v":{"v":1740,"d":"R$ 1,740"}}]
["O rótulo admissão está na célula à direita. A diferença é calculada automaticamente na célula G5. A próxima instrução está na célula A7.","Diferença","(Real menos previsto)",{"$nulls":3},{"$f":"G4-G3","v":{"v":155,"d":"R$ 155"}}]
[]
["A rótulo de receita está na célula à direita, no rótulo de despesas na célula J7 e dica de resumo do orçamento na célula na célula F7.","Receita",{"$nulls":3},"Despesas",{"$nulls":3},"Selecione a tabela dinâmica abaixo e selecione atualizar  na guia analisar para atualizar."]
["O rótulo receita real está na célula à direita no rótulo de despesas na célula F8. Insira a renda 1 na célula D8. O total de despesas é automaticamente calculado na célula G8.","REAL","Renda 1",{"v":5800,"d":"R$ 5,800"},null,"REAL",{"$f":"SUM(DetalhesDoOrçamento[Custo Real])","v":{"v":7860,"d":"R$ 7,860"}}]
["Insira a renda 2 na célula D9. Imagem está na célula J9. Tabela dinâmica começa na célula K9. Para atualizar a tabela dinâmica, selecione Atualizar na guia analisar.",null,"Renda 2",{"v":2300,"d":"R$ 2,300"},{"$nulls":5},"A imagem está nesta célula.","Categoria","Custo previsto ","Custo Real ","Diferença "]
["Insira a renda extra na célula D10.",null,"Renda extra",{"v":1500,"d":"R$ 1,500"},{"$nulls":6},"Filhos",{"v":140,"d":"R$ 140"},{"v":140,"d":"R$ 140"},{"v":0,"d":"R$ 0"}]
["O rótulo Total de Renda está na célula C11 e Total de Renda é calculada automática na célula D11. A próxima instrução está na célula A13.",null,"Total de Renda",{"$f":"SUM(D8:D10)","v":{"v":9600,"d":"R$ 9,600"}}]
[{"$nulls":10},"Entretenimento",{"v":400,"d":"R$ 400"},{"v":358,"d":"R$ 358"},{"v":42,"d":"R$ 42"}]
["O rótulo de receita projetada está na célula à direita e o rótulo de despesas projetadas na célula F13. Despesas projetadas são calculadas na célula G13 automática.","PROJETADO",{"$nulls":3},"PROJETADO",{"$f":"SUM(DetalhesDoOrçamento[Custo previsto])","v":{"v":7915,"d":"R$ 7,915"}}]
["Insira a renda prevista 1 na célula D14.",null,"Renda 1",{"v":6000,"d":"R$ 6,000"},{"$nulls":6},"Alimentação",{"v":1100,"d":"R$ 1,100"},{"v":1320,"d":"R$ 1,320"},{"v":-220,"d":"-R$ 220"}]
["Insira a renda prevista 2 na célula D15.",null,"Renda 2",{"v":1000,"d":"R$ 1,000"}]
["Insira renda extra na célula D16.",null,"Renda extra",{"v":2500,"d":"R$ 2,500"},{"$nulls":6},"Presentes e instituição de caridade",{"v":100,"d":"R$ 100"},{"v":125,"d":"R$ 125"},{"v":-25,"d":"-R$ 25"}]
["O rótulo Total de Renda está na célula C17 e Total de Renda é calculada na célula D17 automaticamente. A próxima instrução está na célula A20.",null,"Total de Renda",{"$f":"SUM(D14:D16)","v":{"v":9500,"d":"R$ 9,500"}}]
[{"$nulls":10},"Moradia",{"v":2830,"d":"R$ 2,830"},{"v":2702,"d":"R$ 2,702"},{"v":128,"d":"R$ 128"}]
[]
["Gráfico de pizza, mostrando a porcentagem de despesas por categoria está na célula à direita.","Gráfico de pizza, mostrando a porcentagem de despesas por categoria está nessa célula.",{"$nulls":8},"Seguro",{"v":900,"d":"R$ 900"},{"v":900,"d":"R$ 900"},{"v":0,"d":"R$ 0"}]
[]
[{"$nulls":10},"Empréstimos",{"v":200,"d":"R$ 200"},{"v":200,"d":"R$ 200"},{"v":0,"d":"R$ 0"}]
[]
[{"$nulls":10},"Cuidados pessoais",{"v":150,"d":"R$ 150"},{"v":140,"d":"R$ 140"},{"v":10,"d":"R$ 10"}]
[]
[{"$nulls":10},"Animais de estimação",{"v":170,"d":"R$ 170"},{"v":100,"d":"R$ 100"},{"v":70,"d":"R$ 70"}]
[]
[{"$nulls":10},"Poupanças ou investimentos",{"v":200,"d":"R$ 200"},{"v":200,"d":"R$ 200"},{"v":0,"d":"R$ 0"}]
[]
[{"$nulls":10},"Impostos",{"v":300,"d":"R$ 300"},{"v":300,"d":"R$ 300"},{"v":0,"d":"R$ 0"}]
[]
[{"$nulls":10},"Transporte",{"v":1425,"d":"R$ 1,425"},{"v":1375,"d":"R$ 1,375"},{"v":50,"d":"R$ 50"}]
[]
[{"$nulls":10},"Total Geral",{"v":7915,"d":"R$ 7,915"},{"v":7860,"d":"R$ 7,860"},{"v":55,"d":"R$ 55"}]

{"sheet":"Despesas mensais","index":2,"n_rows":62,"n_cols":7,"rows_kept":62,"merged":[[0,1,0,4],[0,5,0,6]]}
["Insira as despesas mensais nesta planilha. O título desta planilha está na célula à direita. Selecione a célula F1 para navegar até a planilha do relatório de orçamento mensal.","Despesas mensais",{"$nulls":3},"Relatório de orçamento mensal"]
[" Inserir dados na tabela Detalhes do orçamento iniciando na célula à direita.","Descrição","Categoria","Custo previsto","Custo Real","Diferença","Visão geral de custo real"]
[null,"Atividades extracurriculares","Filhos",{"v":40,"d":"R$ 40"},{"v":40,"d":"R$ 40"},{"$f":"DetalhesDoOrçamento[[#This Row],[Custo previsto]]-DetalhesDoOrçamento[[#This Row],[Custo Real]]","v":{"v":0,"d":"R$ 0"}},{"$f":"DetalhesDoOrçamento[[#This Row],[Custo Real]]","v":{"v":40,"d":"R$ 40"}}]
[null,"Médico","Filhos",null,null,{"$f":"DetalhesDoOrçamento[[#This Row],[Custo previsto]]-DetalhesDoOrçamento[[#This Row],[Custo Real]]","v":{"v":0,"d":"R$ 0"}},{"$f":"DetalhesDoOrçamento[[#This Row],[Custo Real]]","v":{"v":0,"d":"R$ 0"}}]
[null,"Material escolar","Filhos",null,null,{"$f":"DetalhesDoOrçamento[[#This Row],[Custo previsto]]-DetalhesDoOrçamento[[#This Row],[Custo Real]]","v":{"v":0,"d":"R$ 0"}},{"$f":"DetalhesDoOrçamento[[#This Row],[Custo Real]]","v":{"v":0,"d":"R$ 0"}}]
[null,"Mensalidade escolar","Filhos",{"v":100,"d":"R$ 100"},{"v":100,"d":"R$ 100"},{"$f":"DetalhesDoOrçamento[[#This Row],[Custo previsto]]-DetalhesDoOrçamento[[#This Row],[Custo Real]]","v":{"v":0,"d":"R$ 0"}},{"$f":"DetalhesDoOrçamento[[#This Row],[Custo Real]]","v":{"v":100,"d":"R$ 100"}}]
[null,"Shows","Entretenimento",{"v":50,"d":"R$ 50"},{"v":40,"d":"R$ 40"},{"$f":"DetalhesDoOrçamento[[#This Row],[Custo previsto]]-DetalhesDoOrçamento[[#This Row],[Custo Real]]","v":{"v":10,"d":"R$ 10"}},{"$f":"DetalhesDoOrçamento[[#This Row],[Custo Real]]","v":{"v":40,"d":"R$ 40"}}]
[null,"Teatro ao vivo","Entretenimento",{"v":200,"d":"R$ 200"},{"v":150,"d":"R$ 150"},{"$f":"DetalhesDoOrçamento[[#This Row],[Custo previsto]]-DetalhesDoOrçamento[[#This Row],[Custo Real]]","v":{"v":50,"d":"R$ 50"}},{"$f":"DetalhesDoOrçamento[[#This Row],[Custo Real]]","v":{"v":150,"d":"R$ 150"}}]
[null,"Filmes","Entretenimento",{"v":50,"d":"R$ 50"},{"v":28,"d":"R$ 28"},{"$f":"DetalhesDoOrçamento[[#This Row],[Custo previsto]]-DetalhesDoOrçamento[[#This Row],[Custo Real]]","v":{"v":22,"d":"R$ 22"}},{"$f":"DetalhesDoOrçamento[[#This Row],[Custo Real]]","v":{"v":28,"d":"R$ 28"}}]
[null,"Música (CDs, downloads, etc.)","Entretenimento",{"v":50,"d":"R$ 50"},{"v":30,"d":"R$ 30"},{"$f":"DetalhesDoOrçamento[[#This Row],[Custo previsto]]-DetalhesDoOrçamento[[#This Row],[Custo Real]]","v":{"v":20,"d":"R$ 20"}},{"$f":"DetalhesDoOrçamento[[#This Row],[Custo Real]]","v":{"v":30,"d":"R$ 30"}}]
[null,"Eventos esportivos","Entretenimento",{"v":0,"d":"R$ 0"},{"v":40,"d":"R$ 40"},{"$f":"DetalhesDoOrçamento[[#This Row],[Custo previsto]]-DetalhesDoOrçamento[[#This Row],[Custo Real]]","v":{"v":-40,"d":"-R$ 40"}},{"$f":"DetalhesDoOrçamento[[#This Row],[Custo Real]]","v":{"v":40,"d":"R$ 40"}}]
[null,"Vídeo/DVD (compra)","Entretenimento",{"v":20,"d":"R$ 20"},{"v":50,"d":"R$ 50"},{"$f":"DetalhesDoOrçamento[[#This Row],[Custo previsto]]-DetalhesDoOrçamento[[#This Row],[Custo Real]]","v":{"v":-30,"d":"-R$ 30"}},{"$f":"DetalhesDoOrçamento[[#This Row],[Custo Real]]","v":{"v":50,"d":"R$ 50"}}]
[null,"Locações de vídeo/DVD","Entretenimento",{"v":30,"d":"R$ 30"},{"v":20,"d":"R$ 20"},{"$f":"DetalhesDoOrçamento[[#This Row],[Custo previsto]]-DetalhesDoOrçamento[[#This Row],[Custo Real]]","v":{"v":10,"d":"R$ 10"}},{"$f":"DetalhesDoOrçamento[[#This Row],[Custo Real]]","v":{"v":20,"d":"R$ 20"}}]
[null,"Jantar fora","Alimentação",{"v":1000,"d":"R$ 1,000"},{"v":1200,"d":"R$ 1,200"},{"$f":"DetalhesDoOrçamento[[#This Row],[Custo previsto]]-DetalhesDoOrçamento[[#This Row],[Custo Real]]","v":{"v":-200,"d":"-R$ 200"}},{"$f":"DetalhesDoOrçamento[[#This Row],[Custo Real]]","v":{"v":1200,"d":"R$ 1,200"}}]
[null,"Supermercado","Alimentação",{"v":100,"d":"R$ 100"},{"v":120,"d":"R$ 120"},{"$f":"DetalhesDoOrçamento[[#This Row],[Custo previsto]]-DetalhesDoOrçamento[[#This Row],[Custo Real]]","v":{"v":-20,"d":"-R$ 20"}},{"$f":"DetalhesDoOrçamento[[#This Row],[Custo Real]]","v":{"v":120,"d":"R$ 120"}}]
[null,"Instituição beneficente 1","Presentes e instituição de caridade",{"v":75,"d":"R$ 75"},{"v":100,"d":"R$ 100"},{"$f":"DetalhesDoOrçamento[[#This Row],[Custo previsto]]-DetalhesDoOrçamento[[#This Row],[Custo Real]]","v":{"v":-25,"d":"-R$ 25"}},{"$f":"DetalhesDoOrçamento[[#This Row],[Custo Real]]","v":{"v":100,"d":"R$ 100"}}]
[null,"Instituição beneficente 2","Presentes e instituição de caridade",{"v":25,"d":"R$ 25"},{"v":25,"d":"R$ 25"},{"$f":"DetalhesDoOrçamento[[#This Row],[Custo previsto]]-DetalhesDoOrçamento[[#This Row],[Custo Real]]","v":{"v":0,"d":"R$ 0"}},{"$f":"DetalhesDoOrçamento[[#This Row],[Custo Real]]","v":{"v":25,"d":"R$ 25"}}]
[null,"Presente 1","Presentes e instituição de caridade",null,null,{"$f":"DetalhesDoOrçamento[[#This Row],[Custo previsto]]-DetalhesDoOrçamento[[#This Row],[Custo Real]]","v":{"v":0,"d":"R$ 0"}},{"$f":"DetalhesDoOrçamento[[#This Row],[Custo Real]]","v":{"v":0,"d":"R$ 0"}}]
[null,"Presente 2","Presentes e instituição de caridade",null,null,{"$f":"DetalhesDoOrçamento[[#This Row],[Custo previsto]]-DetalhesDoOrçamento[[#This Row],[Custo Real]]","v":{"v":0,"d":"R$ 0"}},{"$f":"DetalhesDoOrçamento[[#This Row],[Custo Real]]","v":{"v":0,"d":"R$ 0"}}]
[null,"TV a cabo/satélite","Moradia",{"v":100,"d":"R$ 100"},{"v":100,"d":"R$ 100"},{"$f":"DetalhesDoOrçamento[[#This Row],[Custo previsto]]-DetalhesDoOrçamento[[#This Row],[Custo Real]]","v":{"v":0,"d":"R$ 0"}},{"$f":"DetalhesDoOrçamento[[#This Row],[Custo Real]]","v":{"v":100,"d":"R$ 100"}}]
[null,"Eletricidade","Moradia",{"v":45,"d":"R$ 45"},{"v":50,"d":"R$ 50"},{"$f":"DetalhesDoOrçamento[[#This Row],[Custo previsto]]-DetalhesDoOrçamento[[#This Row],[Custo Real]]","v":{"v":-5,"d":"-R$ 5"}},{"$f":"DetalhesDoOrçamento[[#This Row],[Custo Real]]","v":{"v":50,"d":"R$ 50"}}]
[null,"Gás","Moradia",{"v":300,"d":"R$ 300"},{"v":400,"d":"R$ 400"},{"$f":"DetalhesDoOrçamento[[#This Row],[Custo previsto]]-DetalhesDoOrçamento[[#This Row],[Custo Real]]","v":{"v":-100,"d":"-R$ 100"}},{"$f":"DetalhesDoOrçamento[[#This Row],[Custo Real]]","v":{"v":400,"d":"R$ 400"}}]
[null,"Serviço de limpeza de casa","Moradia",{"v":200,"d":"R$ 200"},null,{"$f":"DetalhesDoOrçamento[[#This Row],[Custo previsto]]-DetalhesDoOrçamento[[#This Row],[Custo Real]]","v":{"v":200,"d":"R$ 200"}},{"$f":"DetalhesDoOrçamento[[#This Row],[Custo Real]]","v":{"v":0,"d":"R$ 0"}}]
[null,"Manutenção","Moradia",{"v":200,"d":"R$ 200"},{"v":150,"d":"R$ 150"},{"$f":"DetalhesDoOrçamento[[#This Row],[Custo previsto]]-DetalhesDoOrçamento[[#This Row],[Custo Real]]","v":{"v":50,"d":"R$ 50"}},{"$f":"DetalhesDoOrçamento[[#This Row],[Custo Real]]","v":{"v":150,"d":"R$ 150"}}]
[null,"Hipoteca ou aluguel","Moradia",{"v":1700,"d":"R$ 1,700"},{"v":1700,"d":"R$ 1,700"},{"$f":"DetalhesDoOrçamento[[#This Row],[Custo previsto]]-DetalhesDoOrçamento[[#This Row],[Custo Real]]","v":{"v":0,"d":"R$ 0"}},{"$f":"DetalhesDoOrçamento[[#This Row],[Custo Real]]","v":{"v":1700,"d":"R$ 1,700"}}]
[null,"Natural gás","Moradia",null,null,{"$f":"DetalhesDoOrçamento[[#This Row],[Custo previsto]]-DetalhesDoOrçamento[[#This Row],[Custo Real]]","v":{"v":0,"d":"R$ 0"}},{"$f":"DetalhesDoOrçamento[[#This Row],[Custo Real]]","v":{"v":0,"d":"R$ 0"}}]
[null,"Serviço de Internet/online","Moradia",{"v":100,"d":"R$ 100"},{"v":100,"d":"R$ 100"},{"$f":"DetalhesDoOrçamento[[#This Row],[Custo previsto]]-DetalhesDoOrçamento[[#This Row],[Custo Real]]","v":{"v":0,"d":"R$ 0"}},{"$f":"DetalhesDoOrçamento[[#This Row],[Custo Real]]","v":{"v":100,"d":"R$ 100"}}]
[null,"Telefone (celular)","Moradia",{"v":60,"d":"R$ 60"},{"v":60,"d":"R$ 60"},{"$f":"DetalhesDoOrçamento[[#This Row],[Custo previsto]]-DetalhesDoOrçamento[[#This Row],[Custo Real]]","v":{"v":0,"d":"R$ 0"}},{"$f":"DetalhesDoOrçamento[[#This Row],[Custo Real]]","v":{"v":60,"d":"R$ 60"}}]
[null,"Telefone (residencial)","Moradia",{"v":35,"d":"R$ 35"},{"v":39,"d":"R$ 39"},{"$f":"DetalhesDoOrçamento[[#This Row],[Custo previsto]]-DetalhesDoOrçamento[[#This Row],[Custo Real]]","v":{"v":-4,"d":"-R$ 4"}},{"$f":"DetalhesDoOrçamento[[#This Row],[Custo Real]]","v":{"v":39,"d":"R$ 39"}}]
[null,"Suprimentos","Moradia",{"v":40,"d":"R$ 40"},{"v":55,"d":"R$ 55"},{"$f":"DetalhesDoOrçamento[[#This Row],[Custo previsto]]-DetalhesDoOrçamento[[#This Row],[Custo Real]]","v":{"v":-15,"d":"-R$ 15"}},{"$f":"DetalhesDoOrçamento[[#This Row],[Custo Real]]","v":{"v":55,"d":"R$ 55"}}]
[null,"Lixeira e remoção desperdício","Moradia",{"v":25,"d":"R$ 25"},{"v":22,"d":"R$ 22"},{"$f":"DetalhesDoOrçamento[[#This Row],[Custo previsto]]-DetalhesDoOrçamento[[#This Row],[Custo Real]]","v":{"v":3,"d":"R$ 3"}},{"$f":"DetalhesDoOrçamento[[#This Row],[Custo Real]]","v":{"v":22,"d":"R$ 22"}}]
[null,"Água e esgoto","Moradia",{"v":25,"d":"R$ 25"},{"v":26,"d":"R$ 26"},{"$f":"DetalhesDoOrçamento[[#This Row],[Custo previsto]]-DetalhesDoOrçamento[[#This Row],[Custo Real]]","v":{"v":-1,"d":"-R$ 1"}},{"$f":"DetalhesDoOrçamento[[#This Row],[Custo Real]]","v":{"v":26,"d":"R$ 26"}}]
[null,"Saúde","Seguro",{"v":400,"d":"R$ 400"},{"v":400,"d":"R$ 400"},{"$f":"DetalhesDoOrçamento[[#This Row],[Custo previsto]]-DetalhesDoOrçamento[[#This Row],[Custo Real]]","v":{"v":0,"d":"R$ 0"}},{"$f":"DetalhesDoOrçamento[[#This Row],[Custo Real]]","v":{"v":400,"d":"R$ 400"}}]
[null,"Residencial","Seguro",{"v":400,"d":"R$ 400"},{"v":400,"d":"R$ 400"},{"$f":"DetalhesDoOrçamento[[#This Row],[Custo previsto]]-DetalhesDoOrçamento[[#This Row],[Custo Real]]","v":{"v":0,"d":"R$ 0"}},{"$f":"DetalhesDoOrçamento[[#This Row],[Custo Real]]","v":{"v":400,"d":"R$ 400"}}]
[null,"Vida","Seguro",{"v":100,"d":"R$ 100"},{"v":100,"d":"R$ 100"},{"$f":"DetalhesDoOrçamento[[#This Row],[Custo previsto]]-DetalhesDoOrçamento[[#This Row],[Custo Real]]","v":{"v":0,"d":"R$ 0"}},{"$f":"DetalhesDoOrçamento[[#This Row],[Custo Real]]","v":{"v":100,"d":"R$ 100"}}]
[null,"Cartão de crédito 1","Empréstimos",{"v":200,"d":"R$ 200"},{"v":200,"d":"R$ 200"},{"$f":"DetalhesDoOrçamento[[#This Row],[Custo previsto]]-DetalhesDoOrçamento[[#This Row],[Custo Real]]","v":{"v":0,"d":"R$ 0"}},{"$f":"DetalhesDoOrçamento[[#This Row],[Custo Real]]","v":{"v":200,"d":"R$ 200"}}]
[null,"Cartão de crédito 2","Empréstimos",null,null,{"$f":"DetalhesDoOrçamento[[#This Row],[Custo previsto]]-DetalhesDoOrçamento[[#This Row],[Custo Real]]","v":{"v":0,"d":"R$ 0"}},{"$f":"DetalhesDoOrçamento[[#This Row],[Custo Real]]","v":{"v":0,"d":"R$ 0"}}]
[null,"Cartão de crédito 3","Empréstimos",null,null,{"$f":"DetalhesDoOrçamento[[#This Row],[Custo previsto]]-DetalhesDoOrçamento[[#This Row],[Custo Real]]","v":{"v":0,"d":"R$ 0"}},{"$f":"DetalhesDoOrçamento[[#This Row],[Custo Real]]","v":{"v":0,"d":"R$ 0"}}]
[null,"Pessoal","Empréstimos",null,null,{"$f":"DetalhesDoOrçamento[[#This Row],[Custo previsto]]-DetalhesDoOrçamento[[#This Row],[Custo Real]]","v":{"v":0,"d":"R$ 0"}},{"$f":"DetalhesDoOrçamento[[#This Row],[Custo Real]]","v":{"v":0,"d":"R$ 0"}}]
[null,"Estudante","Empréstimos",null,null,{"$f":"DetalhesDoOrçamento[[#This Row],[Custo previsto]]-DetalhesDoOrçamento[[#This Row],[Custo Real]]","v":{"v":0,"d":"R$ 0"}},{"$f":"DetalhesDoOrçamento[[#This Row],[Custo Real]]","v":{"v":0,"d":"R$ 0"}}]
[null,"Vestuário","Cuidados pessoais",{"v":150,"d":"R$ 150"},{"v":140,"d":"R$ 140"},{"$f":"DetalhesDoOrçamento[[#This Row],[Custo previsto]]-DetalhesDoOrçamento[[#This Row],[Custo Real]]","v":{"v":10,"d":"R$ 10"}},{"$f":"DetalhesDoOrçamento[[#This Row],[Custo Real]]","v":{"v":140,"d":"R$ 140"}}]
[null,"Lavagem a seco","Cuidados pessoais",null,null,{"$f":"DetalhesDoOrçamento[[#This Row],[Custo previsto]]-DetalhesDoOrçamento[[#This Row],[Custo Real]]","v":{"v":0,"d":"R$ 0"}},{"$f":"DetalhesDoOrçamento[[#This Row],[Custo Real]]","v":{"v":0,"d":"R$ 0"}}]
[null,"Cabelo/unhas","Cuidados pessoais",null,null,{"$f":"DetalhesDoOrçamento[[#This Row],[Custo previsto]]-DetalhesDoOrçamento[[#This Row],[Custo Real]]","v":{"v":0,"d":"R$ 0"}},{"$f":"DetalhesDoOrçamento[[#This Row],[Custo Real]]","v":{"v":0,"d":"R$ 0"}}]
[null,"Academia","Cuidados pessoais",null,null,{"$f":"DetalhesDoOrçamento[[#This Row],[Custo previsto]]-DetalhesDoOrçamento[[#This Row],[Custo Real]]","v":{"v":0,"d":"R$ 0"}},{"$f":"DetalhesDoOrçamento[[#This Row],[Custo Real]]","v":{"v":0,"d":"R$ 0"}}]
[null,"Médico","Cuidados pessoais",null,null,{"$f":"DetalhesDoOrçamento[[#This Row],[Custo previsto]]-DetalhesDoOrçamento[[#This Row],[Custo Real]]","v":{"v":0,"d":"R$ 0"}},{"$f":"DetalhesDoOrçamento[[#This Row],[Custo Real]]","v":{"v":0,"d":"R$ 0"}}]
[null,"Alimentação","Animais de estimação",{"v":150,"d":"R$ 150"},{"v":75,"d":"R$ 75"},{"$f":"DetalhesDoOrçamento[[#This Row],[Custo previsto]]-DetalhesDoOrçamento[[#This Row],[Custo Real]]","v":{"v":75,"d":"R$ 75"}},{"$f":"DetalhesDoOrçamento[[#This Row],[Custo Real]]","v":{"v":75,"d":"R$ 75"}}]
[null,"Dia da Beleza","Animais de estimação",{"v":20,"d":"R$ 20"},{"v":25,"d":"R$ 25"},{"$f":"DetalhesDoOrçamento[[#This Row],[Custo previsto]]-DetalhesDoOrçamento[[#This Row],[Custo Real]]","v":{"v":-5,"d":"-R$ 5"}},{"$f":"DetalhesDoOrçamento[[#This Row],[Custo Real]]","v":{"v":25,"d":"R$ 25"}}]
[null,"Médico","Animais de estimação",null,null,{"$f":"DetalhesDoOrçamento[[#This Row],[Custo previsto]]-DetalhesDoOrçamento[[#This Row],[Custo Real]]","v":{"v":0,"d":"R$ 0"}},{"$f":"DetalhesDoOrçamento[[#This Row],[Custo Real]]","v":{"v":0,"d":"R$ 0"}}]
[null,"Brinquedos","Animais de estimação",null,null,{"$f":"DetalhesDoOrçamento[[#This Row],[Custo previsto]]-DetalhesDoOrçamento[[#This Row],[Custo Real]]","v":{"v":0,"d":"R$ 0"}},{"$f":"DetalhesDoOrçamento[[#This Row],[Custo Real]]","v":{"v":0,"d":"R$ 0"}}]
[null,"Conta de investimentos","Poupanças ou investimentos",{"v":200,"d":"R$ 200"},{"v":200,"d":"R$ 200"},{"$f":"DetalhesDoOrçamento[[#This Row],[Custo previsto]]-DetalhesDoOrçamento[[#This Row],[Custo Real]]","v":{"v":0,"d":"R$ 0"}},{"$f":"DetalhesDoOrçamento[[#This Row],[Custo Real]]","v":{"v":200,"d":"R$ 200"}}]
[null,"Conta de aposentadoria","Poupanças ou investimentos",null,null,{"$f":"DetalhesDoOrçamento[[#This Row],[Custo previsto]]-DetalhesDoOrçamento[[#This Row],[Custo Real]]","v":{"v":0,"d":"R$ 0"}},{"$f":"DetalhesDoOrçamento[[#This Row],[Custo Real]]","v":{"v":0,"d":"R$ 0"}}]
[null,"Federal","Impostos",{"v":300,"d":"R$ 300"},{"v":300,"d":"R$ 300"},{"$f":"DetalhesDoOrçamento[[#This Row],[Custo previsto]]-DetalhesDoOrçamento[[#This Row],[Custo Real]]","v":{"v":0,"d":"R$ 0"}},{"$f":"DetalhesDoOrçamento[[#This Row],[Custo Real]]","v":{"v":300,"d":"R$ 300"}}]
[null,"Local","Impostos",null,null,{"$f":"DetalhesDoOrçamento[[#This Row],[Custo previsto]]-DetalhesDoOrçamento[[#This Row],[Custo Real]]","v":{"v":0,"d":"R$ 0"}},{"$f":"DetalhesDoOrçamento[[#This Row],[Custo Real]]","v":{"v":0,"d":"R$ 0"}}]
[null,"Estadual","Impostos",null,null,{"$f":"DetalhesDoOrçamento[[#This Row],[Custo previsto]]-DetalhesDoOrçamento[[#This Row],[Custo Real]]","v":{"v":0,"d":"R$ 0"}},{"$f":"DetalhesDoOrçamento[[#This Row],[Custo Real]]","v":{"v":0,"d":"R$ 0"}}]
[null,"Transporte público/táxi","Transporte",{"v":100,"d":"R$ 100"},{"v":150,"d":"R$ 150"},{"$f":"DetalhesDoOrçamento[[#This Row],[Custo previsto]]-DetalhesDoOrçamento[[#This Row],[Custo Real]]","v":{"v":-50,"d":"-R$ 50"}},{"$f":"DetalhesDoOrçamento[[#This Row],[Custo Real]]","v":{"v":150,"d":"R$ 150"}}]
[null,"Combustível","Transporte",{"v":450,"d":"R$ 450"},{"v":400,"d":"R$ 400"},{"$f":"DetalhesDoOrçamento[[#This Row],[Custo previsto]]-DetalhesDoOrçamento[[#This Row],[Custo Real]]","v":{"v":50,"d":"R$ 50"}},{"$f":"DetalhesDoOrçamento[[#This Row],[Custo Real]]","v":{"v":400,"d":"R$ 400"}}]
[null,"Seguro","Transporte",{"v":300,"d":"R$ 300"},{"v":300,"d":"R$ 300"},{"$f":"DetalhesDoOrçamento[[#This Row],[Custo previsto]]-DetalhesDoOrçamento[[#This Row],[Custo Real]]","v":{"v":0,"d":"R$ 0"}},{"$f":"DetalhesDoOrçamento[[#This Row],[Custo Real]]","v":{"v":300,"d":"R$ 300"}}]
[null,"Licenciamento ","Transporte",{"v":25,"d":"R$ 25"},{"v":25,"d":"R$ 25"},{"$f":"DetalhesDoOrçamento[[#This Row],[Custo previsto]]-DetalhesDoOrçamento[[#This Row],[Custo Real]]","v":{"v":0,"d":"R$ 0"}},{"$f":"DetalhesDoOrçamento[[#This Row],[Custo Real]]","v":{"v":25,"d":"R$ 25"}}]
[null,"Manutenção","Transporte",{"v":100,"d":"R$ 100"},{"v":50,"d":"R$ 50"},{"$f":"DetalhesDoOrçamento[[#This Row],[Custo previsto]]-DetalhesDoOrçamento[[#This Row],[Custo Real]]","v":{"v":50,"d":"R$ 50"}},{"$f":"DetalhesDoOrçamento[[#This Row],[Custo Real]]","v":{"v":50,"d":"R$ 50"}}]
[null,"Taxas de estacionamento","Transporte",null,null,{"$f":"DetalhesDoOrçamento[[#This Row],[Custo previsto]]-DetalhesDoOrçamento[[#This Row],[Custo Real]]","v":{"v":0,"d":"R$ 0"}},{"$f":"DetalhesDoOrçamento[[#This Row],[Custo Real]]","v":{"v":0,"d":"R$ 0"}}]
[null,"Pagamento do veículo","Transporte",{"v":450,"d":"R$ 450"},{"v":450,"d":"R$ 450"},{"$f":"DetalhesDoOrçamento[[#This Row],[Custo previsto]]-DetalhesDoOrçamento[[#This Row],[Custo Real]]","v":{"v":0,"d":"R$ 0"}},{"$f":"DetalhesDoOrçamento[[#This Row],[Custo Real]]","v":{"v":450,"d":"R$ 450"}}]
[null,"Total",null,{"$f":"SUBTOTAL(109,DetalhesDoOrçamento[Custo previsto])","v":{"v":7915,"d":"R$ 7,915"}},{"$f":"SUBTOTAL(109,DetalhesDoOrçamento[Custo Real])","v":{"v":7860,"d":"R$ 7,860"}},{"$f":"SUBTOTAL(109,DetalhesDoOrçamento[Diferença])","v":{"v":55,"d":"R$ 55"}}]

{"sheet":"Dados adicionais","index":3,"n_rows":15,"n_cols":5,"rows_kept":15}
["Use essa planilha para modificar a categoria da lista de coluna suspensa na tabela detalhes do orçamento na planilha de despesas mensais. Para fazer isso, modifique ou digite uma nova categoria na tabela de Pesquisa de orçamento de categoria, começando na célula E2. Tabela dinâmica vinculada ao gráfico da visão geral do orçamento em planilha do relatório de orçamento mensal começa na célula B2.","Tabela dinâmica para gráfico da visão geral do orçamento",null,null,"Lista de pesquisa para a categoria de detalhes do orçamento"]
[null,"Categoria","Custo",null,"Pesquisa de orçamento de categoria"]
[null,"Filhos",{"v":140,"d":"R$ 140"},null,"Filhos"]
[null,"Entretenimento",{"v":358,"d":"R$ 358"},null,"Entretenimento"]
[null,"Alimentação",{"v":1320,"d":"R$ 1,320"},null,"Alimentação"]
[null,"Presentes e instituição de caridade",{"v":125,"d":"R$ 125"},null,"Presentes e instituição de caridade"]
[null,"Moradia",{"v":2702,"d":"R$ 2,702"},null,"Moradia"]
[null,"Seguro",{"v":900,"d":"R$ 900"},null,"Seguro"]
[null,"Empréstimos",{"v":200,"d":"R$ 200"},null,"Empréstimos"]
[null,"Cuidados pessoais",{"v":140,"d":"R$ 140"},null,"Cuidados pessoais"]
[null,"Animais de estimação",{"v":100,"d":"R$ 100"},null,"Animais de estimação"]
[null,"Poupanças ou investimentos",{"v":200,"d":"R$ 200"},null,"Poupanças ou investimentos"]
[null,"Impostos",{"v":300,"d":"R$ 300"},null,"Impostos"]
[null,"Transporte",{"v":1375,"d":"R$ 1,375"},null,"Transporte"]
[null,"Total Geral",{"v":7860,"d":"R$ 7,860"}]